fUSD/lending_fUSD_20250320
["ID","MTS","AMOUNT","RATE_DAILY","PERIOD"]
[356439647,1742457043181,-151.0,0.00029273,7]
[356439648,1742457043191,-151.0,0.00029273,7]
[356439649,1742457043200,-164.793772,0.00029273,7]
[356439650,1742457043210,-729.650563,0.00029273,7]
[356439651,1742457043220,-151.0,0.00029273,7]
[356439652,1742457043229,-729.650563,0.00029273,7]
[356439653,1742457043239,-63823.39,0.00029275,2]
[356439654,1742457043248,-3000.0,0.000293,2]
[356439655,1742457043258,-1144.56,0.00029327,2]
[356439656,1742457043267,-151.0,0.0002933,7]
[356439657,1742457043276,-151.0,0.0002933,7]
[356439658,1742457043285,-63823.39,0.0002933,2]
[356439659,1742457043295,-729.650563,0.0002933,7]
[356439660,1742457043304,-151.0,0.0002933,7]
[356439661,1742457043313,-729.650563,0.0002933,7]
[356439662,1742457043323,-151.0,0.00029338,7]
[356439663,1742457043332,-151.0,0.00029338,7]
[356439664,1742457043342,-151.0,0.00029338,7]
[356439665,1742457043351,-151.0,0.00029338,7]
[356439666,1742457043361,-151.0,0.00029338,7]
[356439667,1742457043370,-167.146495,0.00029338,7]
[356439668,1742457043380,-167.146495,0.00029338,7]
[356439669,1742457043389,-1470.0,0.00029338,2]
[356439670,1742457043398,-500.4244151,0.00029373,5]
[356439671,1742457043408,-150.0,0.00029374,2]
[356439672,1742457043417,-1144.56,0.00029382,2]
[356439673,1742457043426,-63823.39,0.00029385,2]
[356439674,1742457043435,-267.06611991,0.000294,5]
[356439675,1742457043445,-983.59258104,0.000294,2]
[356439676,1742457043454,-151.0,0.00029429,7]
[356439677,1742457043463,-151.0,0.00029437,7]
[356439678,1742457043472,-151.0,0.00029437,7]
[356439679,1742457043481,-729.650563,0.00029437,7]
[356439680,1742457043491,-151.0,0.00029437,7]
[356439681,1742457043501,-729.650563,0.00029437,7]
[356439682,1742457043510,-1144.56,0.00029437,2]
[356439683,1742457043519,-151.0,0.00029438,7]
[356439684,1742457043529,-151.0,0.00029438,7]
[356439685,1742457043538,-151.0,0.00029438,7]
[356439686,1742457043547,-151.0,0.00029438,7]
[356439687,1742457043556,-167.146495,0.00029438,7]
[356439688,1742457043566,-167.146495,0.00029438,7]
[356439689,1742457043575,-63823.39,0.0002944,2]
[356439690,1742457043584,-701.00951015,0.0002947,2]
[356439691,1742457043594,-400.0,0.0002947,2]
[356439692,1742457043604,-400.0,0.0002947,2]
[356439693,1742457043614,-400.0,0.0002947,2]
[356439694,1742457043624,-151.0,0.00029479,7]
[356439695,1742457043633,-151.0,0.00029479,7]
[356439696,1742457043642,-729.650563,0.00029479,7]
[356439697,1742457043652,-151.0,0.00029479,7]
[356439698,1742457043661,-729.650563,0.00029479,7]
[356439699,1742457043671,-184.02477351,0.00029479,7]
[356439700,1742457043683,-150.0,0.00029479,7]
[356439701,1742457043692,-8865.0,0.00029479,2]
[356439702,1742457043702,-4034.0,0.00029479,2]
[356439703,1742457043712,-249.0,0.0002948,2]
[356439704,1742457043721,-299.240343,0.00029484,7]
[356439705,1742457043731,-151.0,0.00029492,7]
[356439706,1742457043740,-151.0,0.00029492,7]
[356439707,1742457043750,-160.573916,0.00029492,7]
[356439708,1742457043760,-151.0,0.00029492,7]
[356439709,1742457043770,-167.146495,0.00029492,7]
[356439710,1742457043781,-167.146495,0.00029492,7]
[356439711,1742457043791,-1144.56,0.00029492,2]
[356439712,1742457043804,-63823.39,0.00029494,2]
[356439713,1742457043813,-207.86257328,0.00029499,15]
[356439714,1742457043824,-3579852.68464172,0.000295,15]
[356439715,1742457043833,-1267.95,0.000295,2]
[356439716,1742457043842,-151.0,0.000295,7]
[356439717,1742457043852,-151.0,0.000295,7]
[356439718,1742457043862,-151.0,0.000295,7]
[356439719,1742457043872,-151.0,0.000295,7]
[356439720,1742457043882,-167.146495,0.000295,7]
[356439721,1742457043892,-167.146495,0.000295,7]
[356439722,1742457043901,-151.0,0.000295,7]
[356439723,1742457043910,-729.650563,0.000295,7]
[356439724,1742457043920,-151.0,0.000295,7]
[356439725,1742457043929,-729.650557,0.000295,7]
[356439726,1742457043939,-150.0,0.00029513,7]
[356439727,1742457043951,-1144.56,0.00029546,2]
[356439728,1742457043960,-150.0,0.00029547,7]
[356439729,1742457043970,-63823.39,0.00029549,2]
[356439730,1742457043984,-150.0,0.0002958,7]
[356439731,1742457043994,-1144.56,0.00029601,2]
[356439732,1742457044004,-151.0,0.00029602,7]
[356439733,1742457044013,-151.0,0.00029602,7]
[356439734,1742457044023,-151.0,0.00029602,7]
[356439735,1742457044032,-167.146495,0.00029602,7]
[356439736,1742457044042,-167.146495,0.00029602,7]
[356439737,1742457044053,-52651.27284396,0.00029604,2]
[356439738,1742457044138,-11172.11715604,0.00029604,2]
[356439739,1742457044148,-150.0,0.00029614,7]
[356439740,1742457044157,-1470.0,0.00029641,2]
[356439741,1742457044167,-150.0,0.00029647,7]
[356439742,1742457044176,-1144.56,0.00029656,2]
[356439743,1742457044186,-63823.39,0.00029659,2]
[356439744,1742457044196,-152.0,0.00029659,3]
[356439745,1742457044205,-150.0,0.00029681,7]
[356439746,1742457044214,-151.80044,0.00029688,7]
[356439747,1742457044223,-1235.0,0.000297,2]
[356439748,1742457044233,-1144.56,0.00029711,2]
[356439749,1742457044242,-151.0,0.00029712,7]
[356439750,1742457044253,-151.0,0.00029712,7]
[356439751,1742457044262,-151.0,0.00029712,7]
[356439752,1742457044271,-167.146495,0.00029712,7]
[356439753,1742457044280,-167.146495,0.00029712,7]
[356439754,1742457044290,-63823.39,0.00029713,2]
[356439755,1742457044300,-150.0,0.00029714,7]
[356439756,1742457044310,-150.0,0.00029748,7]
[356439757,1742457044320,-1144.56,0.00029766,2]
[356439758,1742457044331,-182.769881,0.00029768,2]
[356439759,1742457044340,-182.769881,0.00029768,2]
[356439760,1742457044350,-156.956242,0.00029768,2]
[356439761,1742457044360,-151.886926,0.00029768,2]
[356439762,1742457044369,-222.907832,0.00029768,2]
[356439763,1742457044379,-63823.39,0.00029768,2]
[356439764,1742457044388,-222.907832,0.00029772,2]
[356439765,1742457044397,-23199.54581996,0.0002978,2]
[356439766,1742457044409,-20377.23271102,0.0002978,2]
[356439767,1742457044420,-1476.29675264,0.0002978,2]
[356439768,1742457044432,-26030.97397692,0.0002978,2]
[356439769,1742457044441,-151.0,0.0002978,7]
[356439770,1742457044451,-151.0,0.0002978,7]
[356439771,1742457044460,-151.0,0.0002978,7]
[356439772,1742457044470,-151.0,0.0002978,7]
[356439773,1742457044480,-167.146495,0.0002978,7]
[356439774,1742457044489,-167.146499,0.0002978,7]
[356439775,1742457044498,-150.0,0.00029781,7]
[356439776,1742457044508,-1607.40379653,0.000298,2]
[356439777,1742457044517,-182.769881,0.00029802,2]
[356439778,1742457044526,-182.769881,0.00029802,2]
[356439779,1742457044536,-222.907832,0.00029802,2]
[356439780,1742457044545,-150.0,0.00029805,30]
[356439781,1742457044555,-150.0,0.00029805,30]
[356439782,1742457044564,-153.47559783,0.00029805,30]
[356439783,1742457044573,-306.13625491,0.00029805,30]
[356439784,1742457044583,-996.87518094,0.00029805,30]
[356439785,1742457044592,-150.0,0.00029815,7]
[356439786,1742457044602,-1144.56,0.0002982,2]
[356439787,1742457044612,-11042.57152624,0.00029823,2]
[356439788,1742457044625,-362.78098877,0.00029823,2]
[356439789,1742457044637,-1728.77262585,0.00029823,2]
[356439790,1742457044648,-493.98587737,0.00029823,2]
[356439791,1742457044659,-2090.40897658,0.00029823,2]
[356439792,1742457044671,-2780.34386853,0.00029823,2]
[356439793,1742457044683,-273.90141327,0.00029823,2]
[356439794,1742457044695,-630.93231569,0.00029823,2]
[356439795,1742457044707,-44419.6924077,0.00029823,2]
[356439796,1742457044717,-150.0,0.00029848,7]
[356439797,1742457044726,-1144.56,0.00029875,2]
[356439798,1742457044736,-222.907832,0.00029878,2]
[356439799,1742457044746,-44366.76966746,0.00029878,2]
[356439800,1742457044758,-19456.62033254,0.00029878,2]
[356439801,1742457044768,-150.0,0.00029882,7]
[356439802,1742457044778,-151.80044,0.00029888,7]
[356439803,1742457044787,-182.769881,0.00029889,2]
[356439804,1742457044797,-222.907832,0.00029889,2]
[356439805,1742457044806,-3133.78963266,0.000299,3]
[356439806,1742457044816,-205.0,0.000299,2]
[356439807,1742457044825,-249.0,0.000299,2]
[356439808,1742457044835,-291.834391,0.000299,18]
[356439809,1742457044845,-182.769881,0.00029915,2]
[356439810,1742457044854,-182.769881,0.00029915,2]
[356439811,1742457044863,-222.907832,0.00029915,2]
[356439812,1742457044873,-150.0,0.00029916,7]
[356439813,1742457044882,-1144.56,0.0002993,2]
[356439814,1742457044892,-57725.07984628,0.00029933,2]
[356439815,1742457044904,-6098.31015372,0.00029933,2]
[356439816,1742457044913,-222.907832,0.00029935,2]
[356439817,1742457044922,-4571.36238817,0.00029936,6]
[356439818,1742457044932,-8500.0,0.00029936,6]
[356439819,1742457044942,-6754.952696,0.00029936,6]
[356439820,1742457044951,-1470.0,0.00029943,2]
[356439821,1742457044960,-150.0,0.00029949,7]
[356439822,1742457044970,-168.85616952,0.00029973,5]
[356439823,1742457044984,-2316.42134716,0.00029973,2]
[356439824,1742457044994,-150.0,0.0002998,120]
[356439825,1742457045004,-150.0,0.00029983,7]
[356439826,1742457045015,-1144.56,0.00029985,2]
[356439827,1742457045026,-12199.26704365,0.00029987,2]
[356439828,1742457045039,-15220.66426059,0.00029987,2]
[356439829,1742457045053,-9819.98138706,0.00029987,2]
[356439830,1742457045065,-2101.90480967,0.00029987,2]
[356439831,1742457045077,-5837.0,0.00029987,2]
[356439832,1742457045089,-372.50946649,0.00029987,2]
[356439833,1742457045100,-1677.48832111,0.00029987,2]
[356439834,1742457045113,-1094.0,0.00029987,2]
[356439835,1742457045132,-979.33221049,0.00029987,2]
[356439836,1742457045143,-14521.28458044,0.00029987,2]
[356439837,1742457045152,-300.0,0.0003,10]
[356439838,1742457045162,-200.0,0.0003,120]
[356439839,1742457045171,-500.0,0.0003,45]
[356439840,1742457045180,-900.0,0.0003,31]
[356439841,1742457045189,-302.35427895,0.0003,120]
[356439842,1742457045199,-24879.69,0.0003,30]
[356439843,1742457045208,-4619.23531443,0.0003,120]
[356439844,1742457045220,-2137.81251286,0.0003,120]
[356439845,1742457045235,-3242.95217271,0.0003,120]
[356439846,1742457045244,-7230.73785064,0.0003,120]
[356439847,1742457045255,-254.39513532,0.0003,120]
[356439848,1742457045266,-457.46955249,0.0003,120]
[356439851,1742457045970,-608.83533071,0.0003,120]
[356439852,1742457045988,-1448.56213084,0.0003,120]
[356439853,1742457045999,-5026.0,0.0003,2]
[356439854,1742457046008,-150.0,0.0003,2]
[356439855,1742457046019,-3330.0662247,0.0003,2]
[356439856,1742457046043,-2443.96421722,0.0003,2]
[356439857,1742457046054,-4147.0,0.0003,8]
[356439858,1742457046067,-150.0,0.00030016,7]
[356439859,1742457046076,-1144.56,0.0003004,2]
[356439860,1742457046086,-150.0,0.0003005,7]
[356439861,1742457046096,-150.0,0.00030083,7]
[356439862,1742457046105,-151.80044,0.00030088,7]
[356439863,1742457046115,-1144.56,0.00030094,2]
[356439864,1742457046125,-150.0,0.00030117,7]
[356439865,1742457046135,-150.0,0.00030137,2]
[356439866,1742457046145,-188.3063188,0.00030137,2]
[356439867,1742457046154,-1144.56,0.00030149,2]
[356439868,1742457046164,-150.0,0.0003015,7]
[356439869,1742457046174,-150.0,0.00030184,7]
[356439870,1742457046184,-205.0,0.000302,2]
[356439871,1742457046194,-1144.56,0.00030204,2]
[356439872,1742457046203,-150.0,0.00030217,7]
[356439873,1742457046213,-1470.0,0.00030246,2]
[356439874,1742457046223,-545.49826167,0.00030246,2]
[356439875,1742457046233,-291.20270379,0.00030251,7]
[356439876,1742457046243,-1144.56,0.00030259,2]
[356439877,1742457046253,-158.0,0.00030263,2]
[356439878,1742457046263,-151.80044,0.00030288,7]
[356439880,1742457046273,-1144.58645156,0.00030313,2]
[356439881,1742457046283,-636.0,0.00030369,5]
[356439882,1742457046292,-201891.54694427,0.00030369,30]
[356439912,1742458144269,-202.45,0.00021,2]
[356439919,1742458231738,-47.55,0.00021,2]
[356439920,1742458231748,-244.09247222,0.0002215,7]
[356439921,1742458231843,-9.12792684,0.0002215,7]
[356439922,1742458231855,-322.58660523,0.000231,2]
[356439961,1742458237735,-27.41339477,0.000231,2]
[356439962,1742458237748,-152.09,0.00026849,2]
[356439963,1742458237758,-158.0,0.00027057,2]
[356439964,1742458237768,-180.045446,0.00027112,2]
[356439965,1742458237777,-153.702285,0.00028063,2]
[356439966,1742458237787,-150.0,0.00028149,7]
[356439967,1742458237797,-506.23245962,0.00028204,2]
[356439968,1742458237809,-488.39800677,0.00028204,2]
[356439969,1742458237821,-321.09897034,0.00028204,2]
[356439970,1742458237832,-1010.34382548,0.00028204,2]
[356439971,1742458237902,-895.9490732,0.00028204,2]
[356439972,1742458237913,-713.97766459,0.00028204,2]
[356439973,1742458237923,-151.0,0.00028204,2]
[356439974,1742458237933,-1013.0,0.00028204,2]
[356439975,1742458237942,-168.18,0.00028362,2]
[356439977,1742458237952,-4377.35,0.00028362,2]
[356439979,1742458237963,-299.99,0.00028362,12]
[356439980,1742458237973,-3186.86,0.00028362,2]
[356439981,1742458237984,-1000.73,0.00028393,120]
[356439982,1742458237994,-9218.04,0.00028393,2]
[356439983,1742458238004,-9.19869071,0.00028428,2]
[356439987,1742458240133,-240.80130929,0.00028428,2]
[356439988,1742458240143,-150.0,0.00028602,2]
[356439989,1742458240153,-468.4374,0.00028627,2]
[356439990,1742458240162,-300.0,0.00028639,2]
[356439991,1742458240172,-295.6127,0.00028682,2]
[356439992,1742458240182,-197.71,0.00028736,2]
[356439993,1742458240192,-242.92,0.00028736,2]
[356439994,1742458240202,-643.09,0.00028736,2]
[356439995,1742458240212,-7042.46,0.00028736,5]
[356439996,1742458240222,-150.99,0.00028736,2]
[356439997,1742458240232,-7267.97859071,0.00028736,10]
[356439998,1742458240244,-23085.94140929,0.00028736,10]
[356439999,1742458240254,-1000.0,0.00028822,2]
[356440000,1742458240264,-278.31,0.00028822,2]
[356440001,1742458240274,-150.99,0.00028822,2]
[356440002,1742458240284,-152.17786257,0.00028873,5]
[356440003,1742458240295,-163.27843185,0.00028873,5]
[356440004,1742458240305,-501.90311089,0.00028873,5]
[356440005,1742458240315,-180.82667819,0.00028873,5]
[356440006,1742458240325,-308.66418139,0.00028873,5]
[356440007,1742458240335,-153.37383654,0.00028873,5]
[356440008,1742458240349,-150.0,0.00028885,2]
[356440009,1742458240359,-999.99,0.00028886,2]
[356440010,1742458240369,-2034.0,0.00028887,2]
[356440011,1742458240381,-641.0,0.00028887,2]
[356440012,1742458240390,-1280.0,0.00028887,2]
[356440013,1742458240400,-1419.0,0.00028887,2]
[356440014,1742458240410,-571.0,0.00028887,2]
[356440015,1742458240421,-787.0,0.00028887,2]
[356440016,1742458240431,-1271.0,0.00028887,2]
[356440017,1742458240441,-4081.0,0.00028887,2]
[356440018,1742458240452,-543.767,0.00028887,2]
[356440019,1742458240463,-907.0,0.00028887,2]
[356440020,1742458240474,-7883.24,0.00028887,2]
[356440021,1742458240484,-1429.0,0.00028887,2]
[356440022,1742458240493,-205.27581378,0.000289,5]
[356440023,1742458240503,-9571.97,0.00029009,2]
[356440024,1742458240512,-500.0,0.00029053,2]
[356440025,1742458240522,-500.0,0.00029108,2]
[356440026,1742458240532,-500.0,0.00029163,2]
[356440027,1742458240542,-511.30841587,0.00029218,2]
[356440028,1742458240551,-150.0,0.00029277,120]
[356440029,1742458240561,-1500.0,0.000293,2]
[356440030,1742458240571,-1402.0,0.00029338,2]
[356440031,1742458240580,-404.6999463,0.00029403,4]
[356440032,1742458240750,-150.0,0.00029499,2]
[356440033,1742458240761,-1402.0,0.00029641,2]
[356440034,1742458240771,-150.0,0.000297,120]
[356440035,1742458240781,-6322.3398,0.000297,2]
[356440036,1742458240790,-163.19339892,0.000297,2]
[356440037,1742458240800,-16201.8997,0.000297,2]
[356440038,1742458240810,-158.0,0.00029745,2]
[356440039,1742458240819,-1002.90761527,0.00029762,2]
[356440040,1742458240828,-1013.6549275,0.00029762,2]
[356440041,1742458240837,-426.69749357,0.00029785,2]
[356440042,1742458240847,-100320.1355,0.000298,2]
[356440043,1742458240856,-1768.799,0.000298,2]
[356440044,1742458240865,-154.9,0.00029836,2]
[356440045,1742458240874,-150.0,0.00029896,120]
[356440046,1742458240882,-254.59513143,0.00029899,2]
[356440047,1742458240891,-195.53931197,0.00029899,2]
[356440048,1742458240900,-500.0,0.00029899,2]
[356440049,1742458240909,-500.0,0.00029899,2]
[356440050,1742458240918,-500.0,0.00029899,2]
[356440051,1742458240927,-500.0,0.00029899,2]
[356440052,1742458240937,-500.0,0.00029899,2]
[356440053,1742458240946,-500.0,0.00029899,2]
[356440054,1742458240956,-500.0,0.00029899,2]
[356440055,1742458240967,-500.0,0.00029899,2]
[356440056,1742458240977,-500.0,0.00029899,2]
[356440057,1742458240987,-15079.1666,0.000299,2]
[356440058,1742458240997,-1435.5968,0.000299,2]
[356440059,1742458241007,-150.0,0.00029943,120]
[356440060,1742458241017,-1402.0,0.00029943,2]
[356440061,1742458241030,-1962.834,0.00029999,24]
[356440062,1742458241040,-196.489,0.00029999,24]
[356440063,1742458241050,-205.0,0.0003,2]
[356440064,1742458241059,-150.0,0.0003,2]
[356440065,1742458241069,-1062.73230163,0.0003,30]
[356440066,1742458241082,-80653.87435604,0.0003,30]
[356440067,1742458241132,-131.62846682,0.0003,30]
[356440072,1742458242958,-1000.0,0.000297,2]
[356440073,1742458242971,-97290.23133284,0.0003,30]
[356440074,1742458242983,-426.69749358,0.00030067,2]
[356440075,1742458242995,-541.81995178,0.00030069,2]
[356440076,1742458243005,-150.0,0.00030095,2]
[356440077,1742458243015,-182.13290337,0.00030137,2]
[356440078,1742458243025,-150.0,0.00030174,2]
[356440079,1742458243038,-1402.0,0.00030246,2]
[356440080,1742458243053,-500.57810699,0.00030246,2]
[356440081,1742458243063,-997.79308468,0.00030269,2]
[356440083,1742458243074,-596.5685,0.00030269,2]
[356440085,1742458243085,-1752.5858,0.00030269,2]
[356440087,1742458243096,-1332.2667,0.00030269,2]
[356440089,1742458243110,-5000.0,0.00030277,3]
[356440092,1742458243122,-180.80926,0.00030313,46]
[356440094,1742458243134,-150.0,0.00030356,7]
[356440096,1742458243143,-150.0,0.00030363,7]
[356440098,1742458243155,-500.0,0.00030368,2]
[356440100,1742458243164,-4853.11,0.00030368,2]
[356440102,1742458243177,-500.0,0.00030368,2]
[356440104,1742458243190,-150.0,0.00030369,7]
[356440106,1742458243199,-1000.0,0.00030369,2]
[356440108,1742458243210,-1000.0,0.00030369,2]
[356440110,1742458243220,-1000.0,0.00030369,2]
[356440113,1742458243243,-1000.0,0.00030369,2]
[356440114,1742458243253,-1000.0,0.00030369,2]
[356440116,1742458243266,-1000.0,0.00030369,2]
[356440118,1742458243276,-1000.0,0.00030369,2]
[356440120,1742458243287,-1000.0,0.00030369,2]
[356440122,1742458243296,-1000.0,0.00030369,2]
[356440124,1742458243307,-1000.0,0.00030369,2]
[356440126,1742458243316,-1000.0,0.00030369,2]
[356440128,1742458243327,-1000.0,0.00030369,2]
[356440129,1742458243335,-1000.0,0.00030369,2]
[356440132,1742458243347,-1000.0,0.00030369,2]
[356440134,1742458243359,-1000.0,0.00030369,2]
[356440136,1742458243369,-1000.0,0.00030369,2]
[356440137,1742458243383,-1000.0,0.00030369,2]
[356440139,1742458243394,-1000.0,0.00030369,2]
[356440141,1742458243404,-1000.0,0.00030369,2]
[356440143,1742458243414,-1000.0,0.00030369,2]
[356440145,1742458243425,-1000.0,0.00030369,2]
[356440147,1742458243435,-1000.0,0.00030369,2]
[356440149,1742458243445,-1000.0,0.00030369,2]
[356440150,1742458243454,-1000.0,0.00030369,2]
[356440152,1742458243464,-1000.0,0.00030369,2]
[356440154,1742458243476,-1000.0,0.00030369,2]
[356440156,1742458243489,-1000.0,0.00030369,2]
[356440158,1742458243499,-1000.0,0.00030369,2]
[356440159,1742458243509,-1000.0,0.00030369,2]
[356440161,1742458243518,-1000.0,0.00030369,2]
[356440163,1742458243528,-1000.0,0.00030369,2]
[356440165,1742458243538,-1000.0,0.00030369,2]
[356440167,1742458243548,-1000.0,0.00030369,2]
[356440169,1742458243558,-1000.0,0.00030369,2]
[356440171,1742458243568,-1000.0,0.00030369,2]
[356440173,1742458243578,-1000.0,0.00030369,2]
[356440174,1742458243587,-1000.0,0.00030369,2]
[356440176,1742458243597,-1000.0,0.00030369,2]
[356440178,1742458243607,-1000.0,0.00030369,2]
[356440180,1742458243616,-1000.0,0.00030369,2]
[356440182,1742458243626,-1000.0,0.00030369,2]
[356440184,1742458243635,-951.0,0.00030369,2]
[356440186,1742458243644,-224.0502302,0.00030373,5]
[356440188,1742458243654,-577.59210817,0.00030373,5]
[356440189,1742458243663,-500.0,0.00030373,5]
[356440191,1742458243673,-727.0,0.00030376,5]
[356440193,1742458243682,-261733.61557924,0.00030377,30]
[356440196,1742458243696,-1719.11,0.00030377,30]
[356440210,1742458245782,-1698.86742684,0.00030377,30]
[356440211,1742458245889,-56100.0000002,0.00030377,30]
[356440212,1742458246153,-2611.18137299,0.00030377,30]
[356440245,1742459136233,-150.0,9.71e-05,2]
[356440251,1742459273842,270.66778951,8e-05,2]
[356440253,1742459281976,-160.3,9.71e-05,2]
[356440255,1742459290639,-150.0,9.71e-05,2]
[356440256,1742459307462,-13.62763278,9.71e-05,2]
[356440257,1742459307485,-136.37236722,9.973e-05,2]
[356440262,1742459318213,-24.13230377,9.973e-05,2]
[356440263,1742459318236,-144.75118103,9.973e-05,2]
[356440279,1742459359846,-9.779922,9.973e-05,2]
[356440280,1742459359870,-143.220078,9.973e-05,2]
[356440286,1742459402668,-282.9097,9.973e-05,2]
[356440297,1742459432385,-300.0,9.999e-05,2]
[356440298,1742459432394,-150.0,9.999e-05,2]
[356440299,1742459432404,-320.01945073,9.999e-05,2]
[356440300,1742459432413,-323.74838128,9.999e-05,2]
[356440301,1742459432423,-232.39134035,9.999e-05,2]
[356440302,1742459432433,-207.35940917,9.999e-05,2]
[356440304,1742459432443,-228.67697072,9.999e-05,2]
[356440305,1742459432453,-239.68815261,9.999e-05,2]
[356440307,1742459432462,-1694718.2464307,0.0001,2]
[356440309,1742459432472,-420.0,0.00010999,2]
[356440311,1742459432482,-247.0,0.00010999,2]
[356440313,1742459432491,-587.0,0.00012099,2]
[356440315,1742459432501,-313.0,0.00013309,2]
[356440317,1742459432510,-250.0,0.0001333,2]
[356440335,1742459432674,-1570.267,0.00021707,2]
[356440337,1742459432684,-1579.63621602,0.0002214,2]
[356440339,1742459432697,-350.0,0.00022144,2]
[356440340,1742459432706,-499.99,0.00022144,2]
[356440342,1742459432716,-1000.0,0.00022149,2]
[356440344,1742459432726,-47478.404659,0.00022158,7]
[356440346,1742459432735,-594044.213345,0.00022158,7]
[356440348,1742459432745,-1268.11,0.000222,2]
[356440350,1742459432755,-3853.8557,0.00024329,10]
[356440352,1742459432767,-350.0,0.00024354,2]
[356440354,1742459432777,-217.38,0.00024373,2]
[356440356,1742459432786,-299.99,0.00024658,7]
[356440358,1742459432794,-150.99,0.00024658,2]
[356440360,1742459432805,-163.86,0.00024658,2]
[356440362,1742459432815,-500.0,0.00024658,2]
[356440364,1742459432824,-500.0,0.00024658,2]
[356440365,1742459432833,-500.0,0.00024658,2]
[356440367,1742459432845,-500.0,0.00024658,2]
[356440369,1742459432854,-500.0,0.00024658,2]
[356440371,1742459432863,-500.0,0.00024658,2]
[356440373,1742459432874,-500.0,0.00024658,2]
[356440375,1742459432883,-500.0,0.00024658,2]
[356440377,1742459432893,-358.33584327,0.00024658,2]
[356440379,1742459432902,-500.0,0.00024658,2]
[356440381,1742459432911,-500.0,0.00024658,2]
[356440383,1742459432921,-500.0,0.00024658,2]
[356440385,1742459432930,-500.0,0.00024658,2]
[356440387,1742459432939,-500.0,0.00024658,2]
[356440389,1742459432948,-600.0,0.00024658,2]
[356440391,1742459432958,-344.84661768,0.000249,2]
[356440392,1742459432967,-205.27581378,0.000249,4]
[356440394,1742459432976,-8613.0,0.0002632,2]
[356440396,1742459432985,-805.02654281,0.00026506,4]
[356440398,1742459432995,-805.02654281,0.00026506,4]
[356440400,1742459433004,-217.38,0.00026637,2]
[356440402,1742459433013,-232.19,0.00026849,2]
[356440404,1742459433022,-167.29477143,0.0002696,2]
[356440406,1742459433031,-151.0,0.00027301,2]
[356440408,1742459433041,-1280.0,0.00027301,2]
[356440410,1742459433050,-151.0,0.00027301,2]
[356440411,1742459433059,-570.1776864,0.00027329,10]
[356440413,1742459433068,-417.36072956,0.00027329,10]
[356440415,1742459433078,-509.63119303,0.00027329,10]
[356440417,1742459433088,-4650.89,0.00027397,2]
[356440419,1742459433097,-500.0,0.00027397,2]
[356440421,1742459433107,-1253.66,0.00027397,2]
[356440423,1742459433116,-4650.89,0.00027452,2]
[356440425,1742459433126,-500.0,0.00027452,2]
[356440427,1742459433139,-1253.66,0.00027452,2]
[356440429,1742459433149,-4650.89,0.00027506,2]
[356440431,1742459433159,-500.0,0.00027506,2]
[356440433,1742459433168,-1253.66,0.00027506,2]
[356440435,1742459433179,-4650.89,0.00027561,2]
[356440436,1742459433190,-500.0,0.00027561,2]
[356440437,1742459433199,-1253.66,0.00027561,2]
[356440438,1742459433208,-4650.89,0.00027616,2]
[356440439,1742459433217,-500.0,0.00027616,2]
[356440440,1742459433226,-1253.66,0.00027616,2]
[356440441,1742459433236,-150.0,0.00027668,7]
[356440442,1742459433245,-4650.89,0.00027671,2]
[356440443,1742459433255,-550.36811375,0.00027671,2]
[356440444,1742459433264,-1253.66,0.00027671,2]
[356440445,1742459433273,-4650.89,0.00027726,2]